{"text_format":"1","workbook":"xlsx","n_sheets":1,"sheets":["CATALOGO "],"not_rendered":{"charts":0,"images":1,"macros":1,"external_links":0,"defined_names":2,"comments":0,"pivot_tables":0},"unopened":[],"bounds":{"document_bytes":16777216,"sheet_cells":100000,"rows_first":2000,"rows_last":500,"rows_between":2000,"halvings":0,"cell_chars":16384,"cell_head_chars":4096},"cells_cut":0,"cells_raw":0,"read":"whole","date_system":"1900"}

{"sheet":"CATALOGO ","index":0,"n_rows":227,"n_cols":9,"rows_kept":227,"cut":false,"hidden":false,"merged":[[226,0,227,4],[226,5,227,8],[154,0,154,1],[169,3,169,6],[173,0,173,1],[174,0,174,1],[176,0,177,4],[176,5,177,8],[179,3,179,6],[181,0,181,1],[199,0,200,4],[199,5,200,8],[210,3,210,6],[150,2,150,6],[104,3,104,6],[106,0,106,1],[113,3,113,6],[115,0,115,1],[119,0,120,4],[119,5,120,8],[141,5,141,6],[143,0,143,1],[144,0,144,1],[147,0,148,4],[147,5,148,8],[71,2,71,6],[73,0,73,1],[85,3,85,6],[87,0,87,1],[94,0,95,4],[94,5,95,8],[67,0,68,4],[67,5,68,8],[29,5,29,6],[32,5,32,7],[33,5,33,7],[35,3,35,8],[45,0,46,4],[45,5,46,8],[48,0,48,1],[57,4,57,6],[59,0,59,1],[62,3,62,6],[64,0,64,1],[47,0,47,1],[7,8,8,8],[10,4,10,8],[11,5,11,6],[28,5,28,6],[13,5,13,6],[14,5,14,6],[15,5,15,6],[16,5,16,6],[17,5,17,6],[18,5,18,6],[19,5,19,6],[22,5,22,7],[23,5,23,6],[24,5,24,6],[27,5,27,7],[12,5,12,7],[7,0,8,0],[7,1,8,1],[7,2,8,2],[7,3,8,3],[7,4,8,4],[7,5,8,5],[7,6,8,6],[7,7,8,7],[6,0,6,8],[0,3,0,8],[1,2,2,2],[1,3,1,6],[1,7,1,8],[2,3,3,6],[2,7,2,8],[3,7,3,8],[4,3,4,6],[4,7,4,8],[5,0,5,2],[5,3,5,4],[5,5,5,8]]}
[null,null,null,"EMPRESA: "]
[null,null,null,"LICITACIÓN No.: UMSNH/FAM2016/IRE-006/2017",null,null,null,"FECHA:"]
[null,null,null,"DESCRIPCIÓN DE LA OBRA:  Construcción de Infraestructura  de Instalaciones y Obra Complementaria, Campus Bicentenario Miguel Hidalgo de la U.M.S.N.H.  "]
[null,null,null,null,null,null,null,"HOJA:"]
[null,null,"MORELIA, MICHOACÁN.  ","UBICACIÓN DE LA OBRA: Ciudad de Hidalgo, Municipio de Hidalgo."]
["MONTO TOTAL DE LA PROPOSICIÓN SIN I.V.A.:",null,null,{"$f":"I32","v":0},null,"(MONTO TOTAL DE LA PROPOSICIÓN SIN I.V.A. Y CON LETRA)"]
["CATÁLOGO DE CONCEPTOS"]
["No.","Clave","DESCRIPCIÓN DEL CONCEPTO","Unidad","Cantidad","Precio unitario con letra","Precio Unitario","Importe en ($)","% de incidencia"]
[]
[]
[null,null,null,null," Construcción de Infraestructura de instalaciones y Obra Complementaria, Campus Bicentenario Miguel Hidalgo de la U.M.S.N.H."]
[null,null,null,null,"PARTIDA","RESUMEN",null,"% de incidencia","SUBTOTAL"]
[null,null,null,null,"FTE0001","SUBESTACIÓN ELÉCTRICA TIPO PEDESTAL DE 150 KVA BANCO EP2"]
[null,null,null,null,{"$f":"A49","v":"PAR0001"},{"$f":"C49","v":"DEMOLICIONES Y DESMONTAJES"},null,"%",{"$f":"H58","v":0}]
[null,null,null,null,{"$f":"A60","v":"PAR0002"},{"$f":"C60","v":"TRAMITES Y GESTIONES PARA INSTALACIÓN ELÉCTRICA DE FUERZA"},null,"%",{"$f":"H63","v":0}]
[null,null,null,null,{"$f":"A65","v":"PAR0003"},{"$f":"C65","v":"OBRA CIVIL PARA INSTALACIÓN ELÉCTRICA DE MEDIA TENSIÓN PARA BANCO EP2."},null,"%",{"$f":"H72","v":0}]
[null,null,null,null,{"$f":"A74","v":"PAR0004"},{"$f":"C74","v":"INSTALACIÓN ELÉCTRICA DE MEDIA TENSIÓN PARA BANCO EP2"},null,"%",{"$f":"H86","v":0}]
[null,null,null,null,{"$f":"A88","v":"PAR0005"},{"$f":"C88","v":"INSTALACIÓN ELÉCTRICA EN BAJA TENSIÓN PARA BANCO EP2"},null,"%",{"$f":"H105","v":0}]
[null,null,null,null,{"$f":"A107","v":"PAR0006"},{"$f":"C107","v":"OBRA CIVIL PARA CIRCUITOS ALIMENTADORES A EDIFICIOS"},null,"%",{"$f":"H114","v":0}]
[null,null,null,null,{"$f":"A116","v":"PAR0007"},{"$f":"C116","v":"CIRCUITOS ALIMENTADORES A EDIFICIOS"},null,"%",{"$f":"H142","v":0}]
[null,null,null,null,null,null,null,"SUBTOTAL FTE0001:",{"$f":"SUM(I14:I20)","v":0}]
[]
[null,null," ",null,"FTE0002","MEDIA TENSIÓN SUBTERRÁNEA BANCO EP4"]
[null,null,null,null,{"$f":"A145","v":"PAR0008"},{"$f":"C145","v":"OBRA CIVIL PARA INSTALACIÓN ELÉCTRICA DE MEDIA TENSIÓN PARA BANCO EP4."},null,"%",{"$f":"H151","v":0}]
[null,null,null,null,{"$f":"A155","v":"PAR0009"},{"$f":"C155","v":"INSTALACIÓN ELÉCTRICA DE MEDIA TENSIÓN PARA BANCO EP4"},null,"%",{"$f":"H170","v":0}]
[null,null,null,null,null,null,null,"SUBTOTAL FTE0002:",{"$f":"SUM(I24:I25)","v":0}]
[]
[null,null,null,null,"FTE0003","SUBESTACIÓN ELÉCTRICA TIPO PEDESTAL DE 75 KVA BANCO EP4"]
[null,null,null,null,{"$f":"A175","v":"PAR0010"},{"$f":"C175","v":"OBRA CIVIL PARA SUBESTACIÓN TIPO PEDESTAL DE 75  KVA"},null,"%",{"$f":"H180","v":0}]
[null,null,null,null,{"$f":"A182","v":"PAR0011"},{"$f":"C182","v":"INSTALACIÓN ELÉCTRICA DE MEDIA TENSIÓN PARA SUBESTACIÓN DE 75 KVA"},null,"%",{"$f":"H211","v":0}]
[null,null,null,null,null,null,null,"SUBTOTAL FTE0003:",{"$f":"SUM(I29:I30)","v":0}]
[null,null,null,null,null,null,null,"SUBTOTAL (FTE0001 AL FTE0003):",{"$f":"I21+I26+I31","v":0}]
[null,null,null,null,null,"I.V.A.:",null,null,{"$f":"ROUND(I32*0.16,2)","v":0}]
[null,null,null,null,null,"TOTAL:",null,null,{"$f":"I32+I33","v":0}]
[]
[null,null,null,"(MONTO TOTAL DE LA PROPOSICIÓN CON LETRA)"]
[]
[]
[]
[]
[]
[]
[]
[]
[]
["Nombre de la empresa",null,null,null,null,"Representante legal"]
[]
["FRENTE 01",null,{"$f":"F13","v":"SUBESTACIÓN ELÉCTRICA TIPO PEDESTAL DE 150 KVA BANCO EP2"}]
["PAR0001",null,"DEMOLICIONES Y DESMONTAJES"]
[1,"E04-067A","DEMOLICIÓN a cualquier altura y nivel de CONCRETO ARMADO con MAQUINARIA PESADA sin recuperación de acero, incluye acarreo de material producto de la demolición a cualquier distancia.(Medido compacto)","m3",5.86,null,null,{"$f":"ROUND(E50*G50,2)","v":0},"%"]
[2,"E04-021","DEMOLICIÓN de MURO de TABIQUE de barro recocido o TABICÓN de concreto de 14 cm de espesor a cualquier altura y nivel, incluye aplanados, cadenas y castillos de concreto armado y acarreo de material producto de la demolición a cualquier distancia.","m2",11.88,null,null,0,"%"]
[3,"E06-005","EXCAVACIÓN a cielo abierto en  terreno tipo \"B\" zona \"A\" empleando MEDIOS MECÁNICOS, hasta profundidades de 3.00 m, incluye afine de taludes. (Medido compacto)","m3",7.13,null,null,0,"%"]
[4,"E04-105A","DESMONTAJE de CABLEADO ELÉCTRICO calibre 1/0 a 3/0 dentro de TUBO de POLIETILENO DE ALTA DENSIDAD DE 3\", incluye retiro del material producto del desmontaje a ubicación indicada por la supervisión a cualquier distancia.","m",30.8,null,null,0,"%"]
[5,"E10-REPTRO3","Desconexión y preparación de TRANSFORMADOR de 75 KVA para ser relocalizado a cualquier distancia, incluye descableado de cable de cobre o aluminio XLP calibre de entre 1/0 - 3/0,  herramienta, maniobras con grúa, protección en terminales tipo codo de M.T. Hasta su reconexión y mano de obra.","pza",1,null,null,0,"%"]
[6,"E10-RETTAPA01","Retiro de TAPA REDONDA de registro de media tensión 84B con recuperación para colocación de tapa cuadrada. Incluye retiro del material producto del desmontaje a ubicación indicada por la supervisión a cualquier distancia.","pza",1,null,null,0,"%"]
[7,"E10-RETITMM1","Retiro con recuperación de INTERRUPTOR TERMOMAGNÉTICO de 3 x 200Amp. marca SQUARE D. Incluye retiro del material producto del desmontaje a ubicación indicada por la supervisión a cualquier distancia.","pza",1,null,null,0,"%"]
[8,"E10-RETGAB01","Retiro con recuperación de GABINETE NEMA para Interruptor TERMOMAGNÉTICO de 3x200Amp. marca SQUARE D. Incluye retiro del material producto del desmontaje a ubicación indicada por la supervisión a cualquier distancia.","pza",1,null,null,0,"%"]
[null,null,null,null,"SUBTOTAL DE DEMOLICIONES Y DESMONTAJES:",null,null,{"$f":"SUM(H50:H57)","v":0}]
[]
["PAR0002",null,"TRAMITES Y GESTIONES PARA INSTALACIÓN ELÉCTRICA DE FUERZA"]
[9,"E18-847","HONORARIOS de la UNIDAD VERIFICADORA de instalaciones eléctricas y subestación acreditada por COMISIÓN FEDERAL DE ELECTRICIDAD, certificando la instalación del proyecto eléctrico con dictamen para la contratación del servicio, no incluye el pago del contrato.","pza",1,null,null,{"$f":"ROUND(E61*G61,2)","v":0},"%"]
[10,"E18-848","HONORARIOS por las GESTIONES ADMINISTRATIVAS y los TRAMITES ante COMISIÓN FEDERAL DE ELECTRICIDAD, incluye: copias fotostáticas y heliográficas de documentos y planos correspondientes.","pza",1,null,null,{"$f":"ROUND(E62*G62,2)","v":0},"%"]
[null,null,null,"SUBTOTAL DE TRAMITES Y GESTIONES PARA INSTALACIÓN ELÉCTRICA DE FUERZA:",null,null,null,{"$f":"SUM(H61:H62)","v":0}]
[]
["PAR0003",null,"OBRA CIVIL PARA INSTALACIÓN ELÉCTRICA DE MEDIA TENSIÓN PARA BANCO EP2."]
[11,"E06-005","EXCAVACIÓN a cielo abierto en  terreno tipo \"B\" zona \"A\" empleando MEDIOS MECÁNICOS, hasta profundidades de 3.00 m, incluye afine de taludes. (Medido compacto)","m3",7.78,null,null,{"$f":"ROUND(E66*G66,2)","v":0},"%"]
[12,"E10-2001","Construcción de BASE para TRANSFORMADOR Norma COMISIÓN FEDERAL DE ELECTRICIDAD de 1.50 m x 1.50 m, elaborada a base de losa de concreto f'c=200 kg/cm2 armado con malla electrosoldada 66-44, incluye formación de ventanas para media y baja tensión, cadena perimetral de concreto f´c=200 kg/cm2 de 15 x 58 cm acabado común armada con 6 varillas del No. 3 (3/8\") y estribos del No. 2 (1/4\") a cada 15 cm, cadena divisoria de concreto f'c= 200 kg/cm2 de 15 x 30 cm acabado común armada con 6 varillas del No. 3 (3/8\") y estribos No. 2 (1/4\")  a cada 15 cm,  plantilla de concreto simple f'c= 100 kg/cm2 de 6 cm de espesor, relleno con base mezclada 70:30 y pulido de superficie de concreto con pasta cemento gris-adhesivo para concreto viejo-nuevo.","pza",1,null,null,0,"%"]
["Nombre de la empresa",null,null,null,null,"Representante legal"]
[]
[13,"E05-251","Suministro y colocación de CAMA de ARENA NEGRA VOLCÁNICA de 5 a 10 cm de espesor promedio, incluye acomodo, extendido y acarreos a cualquier distancia.","m3",4.74,null,null,{"$f":"ROUND(E70*G70,2)","v":0},"%"]
[14,"E05-0121","ACARREO de material producto de EXCAVACIÓN o ESCOMBRO fuera de la obra en CAMIÓN, incluye carga con MÁQUINA y descarga en banco de desperdicio a cualquier distancia. (Medido compacto)","m3",7.78,null,null,0,"%"]
[null,null,"SUBTOTAL DE OBRA CIVIL PARA INSTALACIÓN ELÉCTRICA DE MEDIA TENSIÓN PARA BANCO EP2.:",null,null,null,null,{"$f":"SUM(H66:H71)","v":0}]
[]
["PAR0004",null,"INSTALACIÓN ELÉCTRICA DE MEDIA TENSIÓN PARA BANCO EP2"]
[15,"E18-CONM3V1","Suministro y colocación de CONECTADOR tipo MÚLTIPLE de 3 VÍAS J3 ST 15KV 600/200A.","pza",3,null,null,{"$f":"ROUND(E75*G75,2)","v":0},"%"]
[16,"E18-400","Suministro y colocación de CONECTADOR tipo CODO clase 25 Kv carga 200A calibre 1/0.","pza",6,null,null,0,"%"]
[17,"E18-400H","Suministro y colocación de ADAPTADOR para TIERRA calibre 1/0 25KV 200A.","pza",6,null,null,0,"%"]
[18,"E18-400I","Suministro y colocación de SOLERA de COBRE electrolítico aleación 1100 de 1/4\" x 2\" x15\"","pza",3,null,null,0,"%"]
[19,"E18-2246","Suministro y tendido a cualquier nivel y altura de CABLE de COBRE DESNUDO calibre 2, incluye cocas y desperdicios.","m",11,null,null,0,"%"]
[20,"E18-307A","Suministro y colocación de ZAPATA BIMETÁLICA de DOBLE OJILLO para calibre 4-2.","pza",6,null,null,0,"%"]
[21,"E18-ETQCAB1","Suministro e Instalación de PLACA ETIQUETA de 1 1/2\" de ancho para codificación de conductor.","pza",15,null,null,0,"%"]
[22,"E10-TAPATMTB","Suministro y colocación de TAPA CUADRADA de concreto polimérica reforzada con fibra de vidrio, acabado antiderrapante y contramarco de acero galvanizado de 1.50 x 1.50 m norma CFE-TCCPB, incluye nivelación y maniobras con grúa necesarias para su colocación.","pza",3,null,null,0,"%"]
[23,"E18-806C","Suministro y tendido a cualquier nivel y altura de CABLE MONOCONDUCTOR de MEDIA TENSIÓN XLPE  de ALUMINIO DURO calibre 1/0, aislamiento de polietileno de cadena cruzada y tensión máxima de operación 25 Kv, incluye cocas y desperdicios.","m",33,null,null,0,"%"]
[24,"E18-400J","Suministro y colocación de BOQUILLA tipo INSERTO de operación con carga 200 Amperes clase 25 Kv.","pza",3,null,null,0,"%"]
[25,"E18-TRANF01","Suministro y colocación de TRANSFORMADOR TRIFÁSICO de PEDESTAL de 150  KVA operación EN ANILLO 13200YT/7620, NBAI 95 Kv, 220/127 volts conexión estrella-estrella,  enfriamiento en aceite a través de convección natural de aire (ONAN), Norma \"K\" CON PROTOCOLO, incluye pruebas, nivelación, plomeo, maniobras con grúa y conexión.","pza",1,null,null,0,"%"]
[null,null,null,"SUBTOTAL DE INSTALACIÓN ELÉCTRICA DE MEDIA TENSIÓN PARA BANCO EP2:",null,null,null,{"$f":"SUM(H75:H85)","v":0}]
[]
["PAR0005",null,"INSTALACIÓN ELÉCTRICA EN BAJA TENSIÓN PARA BANCO EP2"]
[26,"E05-3011A","Suministro y tendido de TUBO de POLIETILENO DE ALTA DENSIDAD (PAD) de 3\" (75 mm) de diámetro LISO RD-21 para instalaciones eléctricas, incluye cortes, desperdicio y acarreo del material a cualquier distancia.","m",3.3,null,null,{"$f":"ROUND(E89*G89,2)","v":0},"%"]
[27,"E18-3012","Suministro y tendido de CABLE THW LS calibre 3/0 marca CONDUMEX o MONTERREY tipo vinanel o vinicon antillama 90°, incluye desperdicios y cocas.","m",61.6,null,null,0,"%"]
[28,"E18-306A","Suministro y colocación de ZAPATA TERMINAL PONCHABLE BIMETÁLICA de DOBLE OJILLO para calibre 3/0.","pza",8,null,null,0,"%"]
[29,"E18-307","Suministro y colocación de MANGA TERMOCONTRACTIL calibre 3/0-1/0 de 1.20 m marca 3M","pza",10,null,null,0,"%"]
[30,"E18-TORN01","Suministro y colocación de TORNILLO de ACERO INOXIDABLE de 1/2\" x 2 1/2\" con tuerca y roldanas.","pza",16,null,null,0,"%"]
[31,"E18-3258","Suministro y colocación a cualquier nivel y altura de CODO CONDUIT P.V.C. PESADO de 3\" (75 mm) de diámetro, incluye fijación de la pieza, ranuras donde se requiera y desperdicios.","pza",4,null,null,0,"%"]
["Nombre de la empresa",null,null,null,null,"Representante legal"]
[]
[32,"E18-027I","Suministro y colocación de TABLERO de DISTRIBUCIÓN I-LINE marca SQUARE-D, catálogo LA400M81B de sobreponer, con interruptor principal 400 ampers, 3 fases- 4 hilos, 600 VCA, 100-1200 amperes, 8 circuitos, incluye todo lo necesario para su fijación.","pza",1,null,null,0,"%"]
[33,"E18-560IL","Suministro e instalación a cualquier nivel y altura de INTERRUPTOR TERMOMAGNÉTICO tipo I-LINE 3 polos por 225 ampers marca SQUARE-D catálogo JDA36225","pza",1,null,null,0,"%"]
[34,"E18-560IL2","Suministro e instalación a cualquier nivel y altura de INTERRUPTOR TERMOMAGNÉTICO tipo I-LINE 3 polos por 70 ampers marca SQUARE-D catálogo HDA36070","pza",1,null,null,0,"%"]
[35,"E18-560IL3","Suministro e instalación a cualquier nivel y altura de INTERRUPTOR TERMOMAGNÉTICO tipo I-LINE 3 polos por 150 ampers marca SQUARE-D catálogo HDA36150","pza",1,null,null,0,"%"]
[36,"E18-560IL4","Suministro e instalación a cualquier nivel y altura de INTERRUPTOR TERMOMAGNÉTICO tipo I-LINE 3 polos por 15 ampers marca SQUARE-D catálogo HDA36015","pza",1,null,null,0,"%"]
[37,"E18-8205","Suministro y colocación de VARILLA COPPERWELD de 5/8\" x 3.00 m, incluye protocolo y penetración al suelo.","pza",12,null,null,0,"%"]
[38,"E18-8208","SOLDADURA EXOTÉRMICA a cualquier nivel y altura de CABLE HORIZONTAL de PASO 4/0 a una VARILLA de aterrizaje vertical COPPERWELD de 5/8\", incluye limpieza de conductores y varilla, molde, carga y vaciado de soldadura, equipo y retiro de molde.","pza",13,null,null,0,"%"]
[39,"E18-2247","Suministro y tendido a cualquier nivel y altura de CABLE de COBRE DESNUDO calibre 4/0, incluye cocas y desperdicios.","m",11,null,null,0,"%"]
[null,null,null,"SUBTOTAL DE INSTALACIÓN ELÉCTRICA EN BAJA TENSIÓN PARA BANCO EP2:",null,null,null,{"$f":"SUM(H89:H104)","v":0}]
[]
["PAR0006",null,"OBRA CIVIL PARA CIRCUITOS ALIMENTADORES A EDIFICIOS"]
[40,"E05-004","TRAZO y NIVELACIÓN de OBRAS EXTERIORES, considerando: plazas, andadores, arriates,  jardinería y trayectorias de instalaciones, incluye equipo de topografía y materiales para señalamiento.","m2",417.86,null,null,{"$f":"ROUND(E108*G108,2)","v":0},"%"]
[41,"E06-005","EXCAVACIÓN a cielo abierto en  terreno tipo \"B\" zona \"A\" empleando MEDIOS MECÁNICOS, hasta profundidades de 3.00 m, incluye afine de taludes. (Medido compacto)","m3",181.68,null,null,0,"%"]
[42,"E05-251","Suministro y colocación de CAMA de ARENA NEGRA VOLCÁNICA de 5 a 10 cm de espesor promedio, incluye acomodo, extendido y acarreos a cualquier distancia.","m3",33.409999999999997,null,null,0,"%"]
[43,"E10-2003","Suministro y colocación de REGISTRO de MEDIA TENSIÓN de concreto 1.16 x 1.16 x 1.16 m tipo T-3 norma CFE-TN-RMTB-3, incluye maniobras con grúa, cama de grava volcánica, abocinado de salidas y tapa metálica tipo 84-A.","pza",5,null,null,0,"%"]
[44,"E05-02505A","RELLENO y COMPACTADO con pisón de MANO y agua en  capas de 20 cm utilizando MATERIAL PRODUCTO de EXCAVACIÓN, incluye traspaleo, extendido y acarreo a cualquier distancia.(Medido compacto)","m3",126.67,null,null,0,"%"]
[45,"E05-0121","ACARREO de material producto de EXCAVACIÓN o ESCOMBRO fuera de la obra en CAMIÓN, incluye carga con MÁQUINA y descarga en banco de desperdicio a cualquier distancia. (Medido compacto)","m3",50.46,null,null,0,"%"]
[null,null,null,"SUBTOTAL DE OBRA CIVIL PARA CIRCUITOS ALIMENTADORES A EDIFICIOS:",null,null,null,{"$f":"SUM(H108:H113)","v":0}]
[]
["PAR0007",null,"CIRCUITOS ALIMENTADORES A EDIFICIOS"]
[46,"E05-3011A","Suministro y tendido de TUBO de POLIETILENO DE ALTA DENSIDAD (PAD) de 3\" (75 mm) de diámetro LISO RD-21 para instalaciones eléctricas, incluye cortes, desperdicio y acarreo del material a cualquier distancia.","m",870.2,null,null,{"$f":"ROUND(E117*G117,2)","v":0},"%"]
[47,"E18-2246","Suministro y tendido a cualquier nivel y altura de CABLE de COBRE DESNUDO calibre 2, incluye cocas y desperdicios.","m",108.15,null,null,0,"%"]
[48,"E18-2244","Suministro y tendido a cualquier nivel y altura de CABLE de COBRE DESNUDO calibre 6, incluye cocas y desperdicios.","m",49.44,null,null,0,"%"]
["Nombre de la empresa",null,null,null,null,"Representante legal"]
[]
[49,"E18-2243","Suministro y tendido a cualquier nivel y altura de CABLE de COBRE DESNUDO calibre 8, incluye cocas y desperdicios.","m",133.9,null,null,0,"%"]
[50,"E18-2241","Suministro y tendido a cualquier nivel y altura de CABLE de COBRE DESNUDO calibre 12, incluye cocas y desperdicios.","m",38.11,null,null,0,"%"]
[51,"E18-CXLP02","Suministro y tendido de CABLE de DISTRIBUCIÓN SECUNDARIO (DRS) XLP de ALUMINIO construcción (3+1) 3x 300 + 1x 4/0 calibre 300kcm - 1/0, 600 Volts, incluye mano de obra, cocas, conexión, ajustes, lubricante y desperdicios.","m",95.32,null,null,0,"%"]
[52,"E18-CXLP01","Suministro y tendido de CABLE de DISTRIBUCIÓN SECUNDARIO (DRS) XLP de ALUMINIO construcción (3+1) 3/0 - 1/0 calibre 3/0 - 1/0 19 hilos, 600 Volts, incluye mano de obra, cocas, conexión, ajustes, lubricante y desperdicios.","m",250.64,null,null,0,"%"]
[53,"E18-CXLP03","Suministro y tendido de CABLE de DISTRIBUCIÓN SECUNDARIO (DRS) XLP de ALUMINIO construcción (3+1) 4/0 - 2/0 calibre 4/0 - 2/0, 600 Volts, incluye mano de obra, cocas, conexión, ajustes, lubricante y desperdicios.","m",50.97,null,null,0,"%"]
[54,"E18-300C","Suministro y colocación de CONECTOR CILÍNDRICO BIMETÁLICO tensión mínima calibre 300 kcm","pza",12,null,null,0,"%"]
[55,"E18-300D","Suministro y colocación de CONECTOR CILÍNDRICO BIMETÁLICO tensión mínima calibre 250 kcm","pza",6,null,null,0,"%"]
[56,"E18-300E","Suministro y colocación de CONECTOR CILÍNDRICO BIMETÁLICO tensión mínima calibre 4/0.","pza",10,null,null,0,"%"]
[57,"E18-300F","Suministro y colocación de CONECTOR CILÍNDRICO BIMETÁLICO tensión mínima calibre 3/0.","pza",2,null,null,0,"%"]
[58,"E18-300G","Suministro y colocación de CONECTOR CILÍNDRICO BIMETÁLICO tensión mínima calibre 2/0.","pza",2,null,null,{"$f":"ROUND(E131*G131,2)","v":0},"%"]
[59,"E18-300B","Suministro y colocación de CONECTOR CILÍNDRICO BIMETÁLICO tensión mínima calibre 6","pza",8,null,null,0,"%"]
[60,"E18-8205","Suministro y colocación de VARILLA COPPERWELD de 5/8\" x 3.00 m, incluye protocolo y penetración al suelo.","pza",7,null,null,0,"%"]
[61,"E18-302A","Suministro y colocación de CONECTOR de BRONCE MECÁNICO para SISTEMA DE TIERRA tipo M-GAR6426  4-2/0.","pza",7,null,null,0,"%"]
[62,"E18-TAQARP02","Suministro y colocación de TAQUETE expansor tipo ARPÓN de 3/8\"x5\", incluye materiales, mano de obra, herramienta y todo lo necesario para su colocación.","pza",8,null,null,0,"%"]
[63,"E18-400A","Suministro y colocación de CORREDERA DE ACERO GALVANIZADA DE 60 cm NORMA CFE-20000-01 y NMX H-004 para soporte de ménsula y cables de distribución subterránea, incluye todo lo necesario para su fijación.","pza",8,null,null,0,"%"]
[64,"E18-401","Suministro y colocación de MÉNSULA de ACERO GALVANIZADO tipo CS de 25 cm NORMA CFE-20000-01 y NMX H-004, incluye todo lo necesario para su fijación.","pza",24,null,null,0,"%"]
[65,"E18-400C","Suministro y colocación de AISLADOR de NEOPRENO para ménsula, incluye todo lo necesario para su fijación.","pza",24,null,null,0,"%"]
[66,"E18-CINTP30C","Suministro y colocación a cualquier altura de CINTILLO de plástico de 30 cm para sujetar el cable al aislador de neopreno.","pza",98,null,null,0,"%"]
[67,"E18-ETQCAB1","Suministro e Instalación de PLACA ETIQUETA de 1 1/2\" de ancho para codificación de conductor.","pza",72,null,null,0,"%"]
[68,"E18-032A","Suministro y aplicación de RESINA a base de  POLIURETANO con adhesivo integrado tipo RDE-A marca 3M para sellado de punta de ducto de 1\" a 4\" en registros eléctricos.","pza",24,null,null,0,"%"]
[null,null,null,null,null,"SUBTOTAL DE CIRCUITOS ALIMENTADORES A EDIFICIOS:",null,{"$f":"SUM(H117:H141)","v":0}]
[]
["FRENTE 02",null,"MEDIA TENSIÓN SUBTERRÁNEA BANCO EP4"]
["PAR0008",null,"OBRA CIVIL PARA INSTALACIÓN ELÉCTRICA DE MEDIA TENSIÓN PARA BANCO EP4."]
[69,"E05-004","TRAZO y NIVELACIÓN de OBRAS EXTERIORES, considerando: plazas, andadores, arriates,  jardinería y trayectorias de instalaciones, incluye equipo de topografía y materiales para señalamiento.","m2",89.92,null,null,{"$f":"ROUND(E146*G146,2)","v":0},"%"]
[70,"E06-005","EXCAVACIÓN a cielo abierto en  terreno tipo \"B\" zona \"A\" empleando MEDIOS MECÁNICOS, hasta profundidades de 3.00 m, incluye afine de taludes. (Medido compacto)","m3",95.41,null,null,0,"%"]
["Nombre de la empresa",null,null,null,null,"Representante legal"]
[]
[71,"E05-251","Suministro y colocación de CAMA de ARENA NEGRA VOLCÁNICA de 5 a 10 cm de espesor promedio, incluye acomodo, extendido y acarreos a cualquier distancia.","m3",6.82,null,null,0,"%"]
[null,null,"SUBTOTAL DE OBRA CIVIL PARA INSTALACIÓN ELÉCTRICA DE MEDIA TENSIÓN PARA BANCO EP4.:",null,null,null,null,{"$f":"SUM(H146:H150)","v":0}]
[]
[]
[]
["PAR0009",null,"INSTALACIÓN ELÉCTRICA DE MEDIA TENSIÓN PARA BANCO EP4"]
[72,"E10-2004A","Suministro y colocación de REGISTRO de MEDIA TENSIÓN de concreto 1.50 x 1.50 x 1.50 m tipo T-4 norma CFE-TN-RMTA-4, incluye maniobras con grúa, cama de grava volcánica, abocinado de salidas y tapa metálica tipo 84-A.","pza",2,null,null,{"$f":"ROUND(E156*G156,2)","v":0},"%"]
[73,"E05-3011A","Suministro y tendido de TUBO de POLIETILENO DE ALTA DENSIDAD (PAD) de 3\" (75 mm) de diámetro LISO RD-21 para instalaciones eléctricas, incluye cortes, desperdicio y acarreo del material a cualquier distancia.","m",447.02,null,null,{"$f":"ROUND(E157*G157,2)","v":0},"%"]
[74,"E18-2246","Suministro y tendido a cualquier nivel y altura de CABLE de COBRE DESNUDO calibre 2, incluye cocas y desperdicios.","m",170.98,null,null,0,"%"]
[75,"E18-806C","Suministro y tendido a cualquier nivel y altura de CABLE MONOCONDUCTOR de MEDIA TENSIÓN XLPE  de ALUMINIO DURO calibre 1/0, aislamiento de polietileno de cadena cruzada y tensión máxima de operación 25 Kv, incluye cocas y desperdicios.","m",536.63,null,null,0,"%"]
[76,"E18-TAQARP01","Suministro y colocación de TAQUETE expansor tipo ARPÓN de 1/2\"x5 3/4\", incluye materiales, mano de obra, herramienta y todo lo necesario para su colocación.","pza",8,null,null,0,"%"]
[77,"E18-TAQARP02","Suministro y colocación de TAQUETE expansor tipo ARPÓN de 3/8\"x5\", incluye materiales, mano de obra, herramienta y todo lo necesario para su colocación.","pza",8,null,null,0,"%"]
[78,"E18-400A","Suministro y colocación de CORREDERA DE ACERO GALVANIZADA DE 60 cm NORMA CFE-20000-01 y NMX H-004 para soporte de ménsula y cables de distribución subterránea, incluye todo lo necesario para su fijación.","pza",8,null,null,0,"%"]
[79,"E18-401","Suministro y colocación de MÉNSULA de ACERO GALVANIZADO tipo CS de 25 cm NORMA CFE-20000-01 y NMX H-004, incluye todo lo necesario para su fijación.","pza",24,null,null,0,"%"]
[80,"E18-400C","Suministro y colocación de AISLADOR de NEOPRENO para ménsula, incluye todo lo necesario para su fijación.","pza",24,null,null,0,"%"]
[81,"E18-CINTP30C","Suministro y colocación a cualquier altura de CINTILLO de plástico de 30 cm para sujetar el cable al aislador de neopreno.","pza",105,null,null,0,"%"]
[82,"E18-ETQCAB1","Suministro e Instalación de PLACA ETIQUETA de 1 1/2\" de ancho para codificación de conductor.","pza",30,null,null,0,"%"]
[83,"E18-032A","Suministro y aplicación de RESINA a base de  POLIURETANO con adhesivo integrado tipo RDE-A marca 3M para sellado de punta de ducto de 1\" a 4\" en registros eléctricos.","pza",15,null,null,0,"%"]
[84,"E18-8205","Suministro y colocación de VARILLA COPPERWELD de 5/8\" x 3.00 m, incluye protocolo y penetración al suelo.","pza",2,null,null,0,"%"]
[85,"E18-302A","Suministro y colocación de CONECTOR de BRONCE MECÁNICO para SISTEMA DE TIERRA tipo M-GAR6426  4-2/0.","pza",2,null,null,0,"%"]
[null,null,null,"SUBTOTAL DE INSTALACIÓN ELÉCTRICA DE MEDIA TENSIÓN PARA BANCO EP4:",null,null,null,{"$f":"SUM(H156:H169)","v":0}]
[]
[]
[]
["FRENTE 03",null,"SUBESTACIÓN ELÉCTRICA TIPO PEDESTAL DE 75 KVA BANCO EP4"]
["PAR0010",null,"OBRA CIVIL PARA SUBESTACIÓN TIPO PEDESTAL DE 75  KVA"]
[86,"E06-005","EXCAVACIÓN a cielo abierto en  terreno tipo \"B\" zona \"A\" empleando MEDIOS MECÁNICOS, hasta profundidades de 3.00 m, incluye afine de taludes. (Medido compacto)","m3",7.13,null,null,{"$f":"ROUND(E176*G176,2)","v":0},"%"]
["Nombre de la empresa",null,null,null,null,"Representante legal"]
[]
[87,"E10-2001","Construcción de BASE para TRANSFORMADOR Norma COMISIÓN FEDERAL DE ELECTRICIDAD de 1.50 m x 1.50 m, elaborada a base de losa de concreto f'c=200 kg/cm2 armado con malla electrosoldada 66-44, incluye formación de ventanas para media y baja tensión, cadena perimetral de concreto f´c=200 kg/cm2 de 15 x 58 cm acabado común armada con 6 varillas del No. 3 (3/8\") y estribos del No. 2 (1/4\") a cada 15 cm, cadena divisoria de concreto f'c= 200 kg/cm2 de 15 x 30 cm acabado común armada con 6 varillas del No. 3 (3/8\") y estribos No. 2 (1/4\")  a cada 15 cm,  plantilla de concreto simple f'c= 100 kg/cm2 de 6 cm de espesor, relleno con base mezclada 70:30 y pulido de superficie de concreto con pasta cemento gris-adhesivo para concreto viejo-nuevo.","pza",1,null,null,{"$f":"ROUND(E179*G179,2)","v":0},"%"]
[null,null,null,"SUBTOTAL DE OBRA CIVIL PARA SUBESTACIÓN TIPO PEDESTAL DE 75  KVA:",null,null,null,{"$f":"SUM(H176:H179)","v":0}]
[]
["PAR0011",null,"INSTALACIÓN ELÉCTRICA DE MEDIA TENSIÓN PARA SUBESTACIÓN DE 75 KVA"]
[88,"E10-RECTRO01","RECONEXIÓN de TRANSFORMADOR de 75 KVA y colocación en su lugar definitivo, incluye maniobras con grúa, materiales, mano de obra, equipo y pruebas.","pza",1,null,null,{"$f":"ROUND(E183*G183,2)","v":0},"%"]
[89,"E18-400F","Suministro y colocación de CONECTADOR tipo CODO clase 15 Kv carga 200A calibre 1/0.","pza",3,null,null,{"$f":"ROUND(E184*G184,2)","v":0},"%"]
[90,"E18-400G","Suministro y colocación de ADAPTADOR para TIERRA calibre 1/0 15KV 200A.","pza",3,null,null,{"$f":"ROUND(E185*G185,2)","v":0},"%"]
[91,"E18-300B","Suministro y colocación de CONECTOR CILÍNDRICO BIMETÁLICO tensión mínima calibre 6","pza",3,null,null,{"$f":"ROUND(E186*G186,2)","v":0},"%"]
[92,"E18-2246","Suministro y tendido a cualquier nivel y altura de CABLE de COBRE DESNUDO calibre 2, incluye cocas y desperdicios.","m",25.75,null,null,0,"%"]
[93,"E18-2231","Suministro y tendido a cualquier nivel y altura de CABLE DE COBRE SUAVE THW-LS calibre 10 temperatura máxima de operación 90°C y tensión máxima de 600 volts, incluye cocas y desperdicios.","m",6.6,null,null,0,"%"]
[94,"E18-8205","Suministro y colocación de VARILLA COPPERWELD de 5/8\" x 3.00 m, incluye protocolo y penetración al suelo.","pza",16,null,null,0,"%"]
[95,"E18-302A","Suministro y colocación de CONECTOR de BRONCE MECÁNICO para SISTEMA DE TIERRA tipo M-GAR6426  4-2/0.","pza",4,null,null,0,"%"]
[96,"E18-8208","SOLDADURA EXOTÉRMICA a cualquier nivel y altura de CABLE HORIZONTAL de PASO 4/0 a una VARILLA de aterrizaje vertical COPPERWELD de 5/8\", incluye limpieza de conductores y varilla, molde, carga y vaciado de soldadura, equipo y retiro de molde.","pza",12,null,null,0,"%"]
[97,"E18-306A","Suministro y colocación de ZAPATA TERMINAL PONCHABLE BIMETÁLICA de DOBLE OJILLO para calibre 3/0.","pza",4,null,null,0,"%"]
[98,"E18-306","Suministro y colocación de ZAPATA BIMETÁLICA de DOBLE OJILLO para calibre 1/0.","pza",1,null,null,0,"%"]
[99,"E18-307A","Suministro y colocación de ZAPATA BIMETÁLICA de DOBLE OJILLO para calibre 4-2.","pza",6,null,null,0,"%"]
[100,"E18-400K","Suministro y colocación de ZAPATA tipo OJILLO AMARILLA 1/2\" calibre 10-12.","pza",6,null,null,{"$f":"ROUND(E195*G195,2)","v":0},"%"]
[101,"E18-307B","Suministro y colocación de MANGA TERMOCONTRACTIL calibre 4/0-300 kcm de 1.20 m marca 3M","pza",1,null,null,{"$f":"ROUND(E196*G196,2)","v":0},"%"]
[102,"E18-TORN01","Suministro y colocación de TORNILLO de ACERO INOXIDABLE de 1/2\" x 2 1/2\" con tuerca y roldanas.","pza",8,null,null,{"$f":"ROUND(E197*G197,2)","v":0},"%"]
[103,"E18-3259","Suministro y colocación a cualquier nivel y altura de CODO CONDUIT P.V.C. PESADO de 4\" (100 mm) de diámetro, incluye fijación de la pieza, ranuras donde se requiera y desperdicios.","pza",3,null,null,{"$f":"ROUND(E198*G198,2)","v":0},"%"]
[104,"E18-322","Suministro y colocación a cualquier nivel y altura de TUBO CONDUIT de P.V.C. tipo PESADO de 4\" (100 mm), de diámetro, incluye guía de alambre galvanizado calibre 14, pegamento, fijación de tubería y ranuras donde se requiera, desperdicios y todo lo necesario para su correcto funcionamiento.","m",6.6,null,null,{"$f":"ROUND(E199*G199,2)","v":0},"%"]
["Nombre de la empresa",null,null,null,null,"Representante legal"]
[]
[105,"E18-235G","Suministro y colocación a cualquier nivel y altura de CODO CONDUIT GALVANIZADO PARED GRUESA de 4\" (100 mm) de diámetro, incluye fijación de la pieza y ranuras donde se requiera, desperdicios y todo lo necesario para su correcto funcionamiento.","pza",1,null,null,{"$f":"ROUND(E202*G202,2)","v":0},"%"]
[106,"E18-230G","Suministro y tendido a cualquier nivel y altura de TUBO CONDUIT GALVANIZADO PARED GRUESA de 100 mm (4\"), incluye guía de alambre galvanizado calibre 14, roscas, fijación de tubería y ranuras donde se requiera, desperdicios y todo lo necesario para su correcto funcionamiento.","m",3.3,null,null,0,"%"]
[107,"E18-236F","Suministro y colocación a cualquier nivel y altura de CONTRA Y MONITOR GALVANIZADO de 4\" (102 mm) de diámetro, incluye fijación de la pieza y ranuras donde se requiera, desperdicios y todo lo necesario para su correcto funcionamiento.","pza",3,null,null,0,"%"]
[108,"E18-404B","Suministro e instalación de INTERRUPTOR TERMOMAGNÉTICO de 3 polos por 225 ampers 600 volts tipo LAL, catálogo LAL36225, marca SQUARE-D.","pza",1,null,null,0,"%"]
[109,"E18-401B","Suministro y colocación de GABINETE tipo NEMA1, catálogo LA400SMX para interruptor TERMOMAGNÉTICO 3 polos x 225 amperes tipo LAL, marca SQUARE-D, incluye todo lo necesario para su fijación.","pza",1,null,null,0,"%"]
[110,"E18-027I2","Suministro y colocación de TABLERO de DISTRIBUCIÓN I-LINE marca SQUARE-D, catalogo ML400101B de sobreponer, con zapatas principales, 3 fases- 4 hilos, 600 VCA, 100-1200 amperes, 10 circuitos, incluye todo lo necesario para su fijación.","pza",1,null,null,0,"%"]
[111,"E18-560IL3","Suministro e instalación a cualquier nivel y altura de INTERRUPTOR TERMOMAGNÉTICO tipo I-LINE 3 polos por 150 ampers marca SQUARE-D catálogo HDA36150","pza",1,null,null,0,"%"]
[112,"E18-3012","Suministro y tendido de CABLE THW LS calibre 3/0 marca CONDUMEX o MONTERREY tipo vinanel o vinicon antillama 90°, incluye desperdicios y cocas.","m",32.96,null,null,0,"%"]
[113,"E18-307B","Suministro y colocación de MANGA TERMOCONTRACTIL calibre 4/0-300 kcm de 1.20 m marca 3M","pza",1,null,null,0,"%"]
[null,null,null,"SUBTOTAL DE INSTALACIÓN ELÉCTRICA DE MEDIA TENSIÓN PARA SUBESTACIÓN DE 75 KVA:",null,null,null,{"$f":"SUM(H183:H210)","v":0}]
[]
[]
[]
[]
[]
[]
[]
[]
[]
[]
[]
[]
[]
[]
[]
["Nombre de la empresa",null,null,null,null,"Representante legal"]